{"text_format":"1","workbook":"xlsx","n_sheets":11,"sheets":["Instructions & Rank Reqm'ts","Input Form","Black Diamond","Brave","Warrior","Firebuilder","Tom-Tom Beater","Runner","Keeper","Shaman","List"],"not_rendered":{"charts":0,"images":0,"macros":1,"external_links":0,"defined_names":1,"comments":0,"pivot_tables":0},"unopened":[],"bounds":{"document_bytes":16777216,"sheet_cells":100000,"rows_first":2000,"rows_last":500,"rows_between":2000,"halvings":0,"cell_chars":16384,"cell_head_chars":4096},"cells_cut":0,"cells_raw":0,"read":"whole","date_system":"1900"}

{"sheet":"Instructions & Rank Reqm'ts","index":0,"n_rows":116,"n_cols":14,"rows_kept":116,"cut":false,"hidden":false,"merged":[[112,1,113,13],[111,1,111,13],[99,1,100,13],[101,1,101,13],[102,1,103,13],[106,1,107,13],[109,1,110,13],[84,1,85,13],[87,1,88,13],[90,1,91,13],[92,1,93,13],[96,1,97,13],[69,1,70,13],[73,1,74,13],[76,1,77,13],[78,1,79,13],[80,1,81,13],[55,1,56,13],[57,1,58,13],[61,1,62,13],[64,1,65,13],[67,1,68,13],[32,1,34,13],[37,1,38,13],[43,1,46,13],[49,1,50,13],[52,1,53,13],[14,1,15,13],[16,1,16,13],[19,1,20,13],[22,1,23,13],[25,1,26,13]]}
[null,"Proven True Spirit Council - Paint & Elevations Committee"]
[null,null,"Larry Koenig, Ricky Holbert, Phil Rossbach, Stu Sutherland, Eric Deters, Mark Borytsky, Mason Kyle"]
[]
[null,"This spreadsheet is intended to streamline preparation of advancement nominations for youth members of Nan-Ba-Zhu."]
[]
[null,"INSTRUCTIONS FOR COMPLETING NANI-BA-ZHU YOUTH ADVANCEMENT NOMINATIONS"]
["1.","Download a copy of this spreadsheet from the MAC Web site to your own computer. Save it as \"NBZ Youth Nomination_Master\""]
["2.","Create a new copy of this spreadsheet for each youth member in your Troop."]
["3.","Begin by saving the template spreadsheet with a unique name for the Scout such as \"NBZ Youth Nomination_John Smith.\""]
["4.","Make changes and updates only to the worksheet titled \"Input Form.\" Place \"X\" in appropriate box for Yes/No questions."]
["5.","All cells in nomination form are automatically populated from information in the \"Input Form.\""]
["6.","When making nominations, annually update fields on the \"Input Form\" that are in RED."]
["7.","Annually review and update as required all fields on the \"Input Form\" that are in GREY."]
["8.","Save the spreadsheet after updates have been completed."]
["9.","Click on the Worksheet displaying the completed nomination form for the rank the Scout is being nominated for (Black Diamond, Brave, Warrior, etc.)"]
[]
["10.","Print the completed nomination form, sign it and submit it to the Nani-Ba-Zhu office."]
[]
["Requirements for Black Diamond Nomination"]
["General:","Black Diamonds are NOT members of the Tribe of Nani-Ba-Zhu.  They are Scouts who have shown sufficient growth, that if continued, might well mean they could be considered for membership the next year."]
[]
[]
[null,"Being a Black Diamond does NOT automatically ensure that the Scout will ever be a member of Nani-Ba-Zhu.  He must continue to grow, mature, and still measure up to the high minimum standards for Nani-Ba-Zhu membership."]
[]
[]
[null,"For these reasons, the following minimum standards (with NO exceptions permitted) must be met.  To be recommended for Black Diamond a Scout must:"]
[]
[]
["1.","Live by the Scout Oath and Law."]
["2.","Have participated in a  majority of his Troop's meetings and activities during the past year."]
["3.","Must be a First Class Scout."]
["4.","Be currently camping for a full week at Camp Cedars."]
["5.","Be a second-year camper at a Scout camp.  In a FEW exceptional cases, where a Scout meets all other requirements and is significantly older than the age than these standards imply, a first-year camper may be considered.  Please explain a request for exception in the field titled \"Other applicable remarks\" of the \"Input Form.\""]
[]
[]
[]
["Requirements for Brave Nomination"]
[" ","In order for the Tribal Council to give full consideration to a Scout for Tribal membership, he must meet the following minimum requirements:"]
[]
["1.","Demonstrate Scout Spirit by living by the Scout Oath and Law."]
["2.","Have participated in a  majority of his Troop's meetings and activities during the past year."]
["3.","Must be a Star Scout."]
["4.","Be a third-year camper currently camping for a full week at Camp Cedars."]
["5.","Demonstrate maturity - Does the Scout have the emotional maturity to deal with difficult problems, accept personal responsibility for his own actions, withstand negative peer pressure influences and exhibit attitudes of cooperation and service to others?  Does he have the inner personal strength to endure a rigorous induction process of introspection though silence , fasting as well as service through physical labor?"]
[]
[]
[]
[]
["Requirements for Warrior Nomination"]
[" ","In order for the Tribal Council to give full consideration to a Scout for additional Tribal responsibility, he must meet the following minimum requirements:"]
[]
["1.","Demonstrate Scout Spirit by living by the Scout Oath and Law."]
["2.","Have participated in a  majority of his Troop's meetings and activities during the past year, have given leadership and have lived as a true Tribesman during the past year."]
[]
["3.","Shall have earned the Indian Lore Merit Badge (or shall earn in during the current summer camp session)"]
["4.","Be in residence for a full week at Camp Cedars or, alternatively, participate in four tribal ceremonies during  the current summer camping session."]
[]
["5.","During camp, the Tribesman will be tested over proficiency at Tribal duties, Indian lore, knowledge of the Tribe, shall participate in service projects and shall demonstrate maturity."]
[]
[]
["Requirements for Firebuilder Nomination"]
[" ","In order for the Tribal Council to give full consideration to a Scout for additional Tribal responsibility, he must meet the following minimum requirements:"]
[]
["1.","Demonstrate Scout Spirit by living by the Scout Oath and Law."]
["2.","Have participated in a  majority of his Troop's meetings and activities during the past year, have given leadership and have lived as a true Tribesman during the past year."]
[]
["3.","Must be a Life Scout."]
["4.","Be in residence for a full week at Camp Cedars or, alternatively, participate in four tribal ceremonies during  the current summer camping session."]
[]
["5.","During camp, the Tribesman will be tested over proficiency at Tribal duties, Indian lore, knowledge of the Tribe, shall participate in service projects and shall demonstrate maturity."]
[]
[]
["Requirements for Tom-Tom Builder Nomination"]
[" ","In order for the Tribal Council to give full consideration to a Scout for additional Tribal responsibility, he must meet the following minimum requirements:"]
[]
["1.","Demonstrate Scout Spirit by living by the Scout Oath and Law."]
["2.","Have participated in a  majority of his Troop's meetings and activities during the past year, have given leadership and have lived as a true Tribesman during the past year."]
[]
["3.","Be in residence for a full week at Camp Cedars or, alternatively, participate in four tribal ceremonies during  the current summer camping session."]
[]
["4.","During camp, the Tribesman will be tested over proficiency at Tribal duties, Indian lore, knowledge of the Tribe, shall participate in service projects and shall demonstrate maturity."]
[]
[]
["Requirements for Runner Nomination"]
[" ","In order for the Tribal Council to give full consideration to a Scout for additional Tribal responsibility, he must meet the following minimum requirements:"]
[]
["1.","Demonstrate Scout Spirit by living by the Scout Oath and Law."]
["2.","Have participated in a  majority of his Troop's meetings and activities during the past year, have given leadership and have lived as a true Tribesman during the past year."]
[]
["3.","Must be an Eagle Scout."]
["4.","Be in residence for a full week at Camp Cedars or, alternatively, participate in four tribal ceremonies during  the current summer camping session."]
[]
["5.","During camp, the Tribesman will be tested over proficiency at Tribal duties, Indian lore, knowledge of the Tribe, shall participate in service projects and shall demonstrate maturity."]
[]
[]
["Requirements for Keeper of the Sacred Bundle Nomination"]
[" ","In order for the Tribal Council to give full consideration to a Scout for additional Tribal responsibility, he must meet the following minimum requirements:"]
[]
["1.","Demonstrate Scout Spirit by living by the Scout Oath and Law."]
["2.","Have participated in a  majority of his Troop's meetings and activities during the past year, have given leadership and have lived as a true Tribesman during the past year."]
[]
["3.","Participate in four tribal ceremonies during  the current summer camping session."]
["4.","During camp, the Tribesman will be tested over proficiency at Tribal duties, Indian lore, knowledge of the Tribe, shall participate in service projects and shall demonstrate maturity."]
[]
[]
["Requirements for Shaman Nomination"]
[" ","In order for the Tribal Council to give full consideration to a Scout for additional Tribal responsibility, he must meet the following minimum requirements:"]
[]
["1.","Demonstrate Scout Spirit by living by the Scout Oath and Law."]
["2.","Have participated in a  majority of his Troop's meetings and activities during the past year, have given leadership and have lived as a true Tribesman during the past year."]
[]
["3.","Participate in four tribal ceremonies during  the current summer camping session."]
["4.","During camp, the Tribesman will be tested over proficiency at Tribal duties, Indian lore, knowledge of the Tribe, shall participate in service projects and shall demonstrate maturity."]
[]
[]
[null,null,null,null,null,null,null,null,null,null,null,null,null,"April 2016 Revision"]

{"sheet":"Input Form","index":1,"n_rows":75,"n_cols":10,"rows_kept":75,"cut":false,"hidden":false,"merged":[[10,7,10,8],[16,7,16,8],[36,7,36,8],[72,1,73,4],[72,5,72,6],[34,5,34,8],[35,6,35,8],[46,1,47,4],[46,5,48,8],[68,2,70,8],[18,3,18,8],[19,3,19,4],[20,3,20,4],[23,3,23,6],[22,3,22,4],[13,5,13,7],[1,1,1,8],[58,1,59,4],[62,1,64,4],[50,5,52,8],[54,5,56,8],[58,5,60,8],[62,5,64,8],[3,1,4,8],[40,2,40,3],[40,7,40,8],[28,5,28,6],[29,5,29,6],[30,5,30,6],[31,5,31,6],[9,3,9,4],[9,7,9,8]]}
[]
[null,"NBZ YOUTH NOMINATION FORM"]
[]
[null,"Update fields shaded in RED annually when Scout is being recommended for an advancement in NBZ.  Review fields in GREY annually and update if changes are needed."]
[]
[]
[null,"Current Date:",null,"Month:"," ","Day:"," ","Year:"," "]
[null,"Example: Enter June 1, 2016 as:",null,null,6,null,1,null,2016]
[]
[null,null,"Scout's First Name:"," ",null,null,"Scout's Last Name:"," "]
[null,null,"Troop or Unit #:"," ",null,null,"MAC District:"," "]
[]
[null,"Scout is being recommended for the following advancement :"]
[null,null,null,null,"NBZ Advancement:","Black Diamond"]
[null,null,null,null,"Click on cell to the right & use drop down arrow"]
[]
[null,"If Scout is already Brave or above, what is Scout's Tribal Name?",null,null,null,null,null," "]
[]
[null,null,"Scout's Address:"," "]
[null,null,"City:"," "]
[null,null,"State:"," "]
[null,null,"Zip Code:"," "]
[null,null,"Phone Number:"," ",null,"Home?:"," ","Cell?:"," "]
[null,null,"E-mail Address:"," "]
[]
[null,"Scout's Date of Birth:",null,"Month:"," ","Day:"," ","Year:"," "]
[null,"Example: Enter January 15, 2000 as:",null,null,1,null,15,null,2000]
[]
[null,"Camps Scout has Attended:",null,null,"Camp:"," ",null,"Year:"," "]
[null,null,null,null,"Camp:"," ",null,"Year:"," "]
[null,null,null,null,"Camp:"," ",null,"Year:"," "]
[null,null,null,null,"Camp:"," ",null,"Year:"," "]
[]
[null,"Current Scout Rank:",null,null,"*"," ",null,"* Date Earned:"," "]
[null,"Advancement Progress this last year:              *",null,null,null," "]
[null,"Current Position of Responsibility held in Unit:",null,null,null,"*"," "]
[null,"*","If Scout is over 18, provide his registered Adult Position",null,null,null,null," "]
[]
[null,"Does Scout Have the Black Diamond?",null,null,null,"Yes:"," ","No:"," "]
[null,"Does Scout have a relative in Nani-Ba-Zhu?",null,null,null,"Yes:"," ","No:"]
[null,"If yes, name:"," ",null,"Relation:"," ","Tribal Name:"," "]
[null,"Indian Lore MB Completed?",null,null,null,"Yes:"," ","No:"," "]
[null,null,null,null,null,null,null,"Will complete at camp:"," "]
[]
[null,"Any medical or diet issues?:",null,null,null,"Yes:"," ","No:"," "]
[]
[null,"If so, state nature of issues or daily medication needed:",null,null,null," "]
[]
[]
[]
[null,"How has Scout demonstrated Scout Spirit?",null,null,null," "]
[]
[]
[]
[null,"Comment on Scout's leadership performance:",null,null,null," "]
[]
[]
[]
[null,"How has Scout demonstrated the maturity needed for the advancement he is being nominated for?",null,null,null," "]
[]
[]
[]
[null,"Other applicable remarks: (i.e. attendance at National Jamboree, member of OA, older scout not previously nominated, etc.)",null,null,null," "]
[]
[]
[]
[null,"Mark an \"X\" in ONE of the boxes below:"]
[null," ","Scout meets all of the requirements for the rank recommendation."]
[null," ","Scout does not meet all the requirements of the rank recommendation.  However, I would still like to have him considered.  See additional considerations in \"Other applicable remarks.\""]
[]
[]
[]
[null,"Name of Unit Leader or Tribal member making nomination:",null,null,null," ",null,"Date:"," "]
[]
[null,null,null,null,null,null,null,null,null,"April 2016 Revision"]

{"sheet":"Black Diamond","index":2,"n_rows":57,"n_cols":13,"rows_kept":57,"cut":false,"hidden":false,"merged":[[51,0,52,1],[31,3,33,12],[27,1,28,12],[35,4,35,6],[20,5,20,7],[21,5,21,7],[22,5,22,7],[23,5,23,7],[38,4,38,6],[13,1,13,3],[15,2,15,6],[11,1,11,5],[11,7,11,8],[6,4,7,12],[9,1,9,2],[9,3,9,6],[9,11,9,12]]}
[]
[null,null,null,null,"BLACK DIAMOND RECOMMENDATION"]
[null,null,null,null,"(Black Diamonds are NOT members of the Tribe of Nani-Ba-Zhu)"]
[]
[null,null,null,null,"This recommendation is Confidential!  No Scout should know that he is being recommended."]
[]
[null,null,null,null,"NOTE: A printed copy of this form must be turned into a representative of Nani-Ba-Zhu at the pre-camp check-in or the Sunday camp check-in."]
[]
[]
["Name:",{"$f":"'Input Form'!D10","v":" "},null,{"$f":"'Input Form'!H10","v":" "},null,null,null,null,"Unit No.:",{"$f":"'Input Form'!D11","v":" "},"District:",{"$f":"'Input Form'!H11","v":" "}]
[]
["Address:",{"$f":"'Input Form'!D19","v":" "},null,null,null,null,"City:",{"$f":"'Input Form'!D20","v":" "},null,"State:",{"$f":"'Input Form'!D21","v":" "},"Zip:",{"$f":"'Input Form'!D22","v":" "}]
[]
["Phone No.:",{"$f":"'Input Form'!D23","v":" "},null,null,null,"Home?:",{"$f":"IF('Input Form'!G23=\"x\",\"X\",\"N/A\")","v":"N/A"},null,"Cell?:",{"$f":"IF('Input Form'!I23=\"X\",\"X\",\"N/A\")","v":"N/A"}]
[]
["E-mail address:",null,{"$f":"'Input Form'!D24","v":" "}]
[]
["Date of Birth:",null,{"$f":"'Input Form'!E26","v":" "},"/",{"$f":"'Input Form'!G26","v":" "},"/",{"$f":"'Input Form'!I26","v":" "},null,"Age:",{"$f":"IF('Input Form'!E7*30.42+'Input Form'!G7>'Input Form'!E26*30.42+'Input Form'!G26,'Input Form'!I7-'Input Form'!I26,'Input Form'!I7-('Input Form'!I26+1))","v":{"$error":"#VALUE!"}}]
[]
["Total years at camp (include this year):"]
[null,"Scout camps attended:",null,null,"Camp:",{"$f":"'Input Form'!F29","v":" "},null,null,null,"Year:",{"$f":"'Input Form'!I29","v":" "}]
[null,null,null,null,"Camp:",{"$f":"'Input Form'!F30","v":" "},null,null,null,"Year:",{"$f":"'Input Form'!I30","v":" "}]
[null,null,null,null,"Camp:",{"$f":"'Input Form'!F31","v":" "},null,null,null,"Year:",{"$f":"'Input Form'!I31","v":" "}]
[null,null,null,null,"Camp:",{"$f":"'Input Form'!F32","v":" "},null,null,null,"Year:",{"$f":"'Input Form'!I32","v":" "}]
[]
["Current Scout Rank:",null,{"$f":"'Input Form'!F34","v":" "},null,null,null,"Date earned:",{"$f":"'Input Form'!I34","v":" "}]
[]
[{"$f":"IF('Input Form'!B68=\"x\",\"X\",\"N/A\")","v":"N/A"},"Scout meets ALL of the requirements for Black Diamond. (Must be 1st Class Scout & a 2nd year camper currently camping full week at Camp Cedars. In rare cases where all other requirements are met a 1st year camper may be considered.)"]
[]
[{"$f":"IF('Input Form'!B69=\"x\",\"X\",\"N/A\")","v":"N/A"},"Scout does not meet all requirements for Black Diamond. However please consider him as per \"Other applicable remarks.\""]
[]
["Other applicable remarks:",null,null,{"$f":"'Input Form'!F63","v":" "}]
[]
[]
[]
["Name of Unit Leader or Tribal Member:",null,null,null,{"$f":"'Input Form'!F73","v":" "},null,null,null,"Date:",{"$f":"'Input Form'!I73","v":" "}]
[]
[]
["Signature of Unit Leader or Tribal Member:"]
[]
[]
[]
[]
[]
[]
["Do NOT write in this space:"]
[null,"Approved:",null,null,"Disapproved:"]
[]
[null,"Reason:"]
[]
[]
["NBZ Coordinator Signature:"]
[]
[]
[]
[]
[null,null,null,null,null,null,null,null,null,null,null,null,"April 2016 Revision"]

{"sheet":"Brave","index":3,"n_rows":63,"n_cols":13,"rows_kept":63,"cut":false,"hidden":true,"merged":[[29,10,29,12],[31,6,32,12],[6,4,6,12],[41,4,41,6],[57,0,58,1],[29,4,29,5],[37,3,39,12],[13,1,13,3],[15,2,15,6],[20,5,20,7],[21,5,21,7],[22,5,22,7],[23,5,23,7],[9,11,9,12],[44,4,44,6],[4,4,5,12],[9,1,9,2],[9,3,9,6],[11,1,11,5],[11,7,11,8]]}
[]
[null,null,null,null,"BRAVE RECOMMENDATION"]
[null,null,null,null,"This recommendation is Confidential!  No Scout should know that he is being recommended."]
[]
[null,null,null,"NOTE: ","1. A printed copy of this form must be turned into a representative of Nani-Ba-Zhu at the pre-camp check-in or the Sunday camp check-in but NO LATER than Tuesday at 5:00 PM."]
[]
[null,null,null,null,"2. This recommendation will be presented to the Tribal Council for final consideration."]
[]
[]
["Name:",{"$f":"'Input Form'!D10","v":" "},null,{"$f":"'Input Form'!H10","v":" "},null,null,null,null,"Unit No.:",{"$f":"'Input Form'!D11","v":" "},"District:",{"$f":"'Input Form'!H11","v":" "}]
[]
["Address:",{"$f":"'Input Form'!D19","v":" "},null,null,null,null,"City:",{"$f":"'Input Form'!D20","v":" "},null,"State:",{"$f":"'Input Form'!D21","v":" "},"Zip:",{"$f":"'Input Form'!D22","v":" "}]
[]
["Phone No.:",{"$f":"'Input Form'!D23","v":" "},null,null,null,"Home?:",{"$f":"IF('Input Form'!G23=\"x\",\"X\",\"N/A\")","v":"N/A"},null,"Cell?:",{"$f":"IF('Input Form'!I23=\"X\",\"X\",\"N/A\")","v":"N/A"}]
[]
["E-mail address:",null,{"$f":"'Input Form'!D24","v":" "}]
[]
["Date of Birth:",null,{"$f":"'Input Form'!E26","v":" "},"/",{"$f":"'Input Form'!G26","v":" "},"/",{"$f":"'Input Form'!I26","v":" "},null,"Age:",{"$f":"IF('Input Form'!E7*30.42+'Input Form'!G7>'Input Form'!E26*30.42+'Input Form'!G26,'Input Form'!I7-'Input Form'!I26,'Input Form'!I7-('Input Form'!I26+1))","v":{"$error":"#VALUE!"}}]
[]
["Total years at camp (include this year):"]
[null,"Scout camps attended:",null,null,"Camp:",{"$f":"'Input Form'!F29","v":" "},null,null,null,"Year:",{"$f":"'Input Form'!I29","v":" "}]
[null,null,null,null,"Camp:",{"$f":"'Input Form'!F30","v":" "},null,null,null,"Year:",{"$f":"'Input Form'!I30","v":" "}]
[null,null,null,null,"Camp:",{"$f":"'Input Form'!F31","v":" "},null,null,null,"Year:",{"$f":"'Input Form'!I31","v":" "}]
[null,null,null,null,"Camp:",{"$f":"'Input Form'!F32","v":" "},null,null,null,"Year:",{"$f":"'Input Form'!I32","v":" "}]
[]
["Current Scout Rank:",null,{"$f":"'Input Form'!F34","v":" "},null,"Date earned:",{"$f":"'Input Form'!I34","v":" "},null,null,null,"Position of Responsibility in Troop:",{"$f":"'Input Form'!G36","v":" "}]
[]
["Does this Scout have the Black Diamond?",null,null,null,{"$f":"IF('Input Form'!G39=\"x\",\"Yes\",\"No\")","v":"No"}]
[]
["Relative in NBZ?",null,{"$f":"IF('Input Form'!G40=\"x\",\"Yes\",\"No\")","v":"No"},"If so, name:",{"$f":"'Input Form'!C41","v":" "},null,"Relation?",{"$f":"'Input Form'!F41","v":" "},null,"Tribal name?",{"$f":"'Input Form'!H41","v":" "}]
[]
["Any medical or diet issues?",null,null,{"$f":"IF('Input Form'!G45=\"x\",\"Yes\",\"No\")","v":"No"},null,"If yes, state nature:",{"$f":"'Input Form'!F47","v":" "}]
[]
[]
[{"$f":"IF('Input Form'!B68=\"x\",\"X\",\"N/A\")","v":"N/A"},"Scout meets ALL of the requirements for Brave. (Must be Star rank and 3rd year camper)"]
[{"$f":"IF('Input Form'!B69=\"x\",\"X\",\"N/A\")","v":"N/A"},"Scout does not meet all requirements for Brave.  However please consider him as per \"Other applicable remarks.\""]
[]
["Other applicable remarks:",null,null,{"$f":"'Input Form'!F63","v":" "}]
[]
[]
[]
["Name of Unit Leader or Tribal Member:",null,null,null,{"$f":"'Input Form'!F73","v":" "},null,null,null,"Date:",{"$f":"'Input Form'!I73","v":" "}]
[]
[]
["Signature of Unit Leader or Tribal Member:"]
[]
[]
[]
[]
[]
[]
["Do NOT write in this space:"]
[null,"Approved:",null,null,"Disapproved:"]
[]
[null,"Reason:"]
[]
[]
["NBZ Coordinator Signature:"]
[null,null,null,null,null,null,null,null,"Date:"]
[]
[]
[]
[null,null,null,null,null,null,null,null,null,null,null,null,"April 2016 Revision"]

{"sheet":"Warrior","index":4,"n_rows":61,"n_cols":13,"rows_kept":61,"cut":false,"hidden":true,"merged":[[4,4,5,12],[6,4,6,12],[11,2,11,5],[25,3,26,12],[27,3,28,12],[9,1,9,2],[9,3,9,6],[13,1,13,5],[13,7,13,8],[9,11,9,12],[29,3,30,12],[39,4,39,6],[55,0,56,1],[35,3,37,12],[15,1,15,3],[17,2,17,6],[42,4,42,6]]}
[]
[null,null,null,null,"WARRIOR RECOMMENDATION"]
[null,null,null,null,"This recommendation is Confidential!  No Scout should know that he is being recommended."]
[]
[null,null,null,"NOTE: ","1. A printed copy of this form must be turned into a representative of Nani-Ba-Zhu at the pre-camp check-in or the Sunday camp check-in but NO LATER than Tuesday at 5:00 PM."]
[]
[null,null,null,null,"2. This recommendation will be presented to the Tribal Council for final consideration."]
[]
[]
["Name:",{"$f":"'Input Form'!D10","v":" "},null,{"$f":"'Input Form'!H10","v":" "},null,null,null,null,"Unit No.:",{"$f":"'Input Form'!D11","v":" "},"District:",{"$f":"'Input Form'!H11","v":" "}]
[]
["Tribal name:",null,{"$f":"'Input Form'!H17","v":" "}]
[]
["Address:",{"$f":"'Input Form'!D19","v":" "},null,null,null,null,"City:",{"$f":"'Input Form'!D20","v":" "},null,"State:",{"$f":"'Input Form'!D21","v":" "},"Zip:",{"$f":"'Input Form'!D22","v":" "}]
[]
["Phone No.:",{"$f":"'Input Form'!D23","v":" "},null,null,null,"Home?:",{"$f":"IF('Input Form'!G23=\"x\",\"X\",\"N/A\")","v":"N/A"},null,"Cell?:",{"$f":"IF('Input Form'!I23=\"X\",\"X\",\"N/A\")","v":"N/A"}]
[]
["E-mail address:",null,{"$f":"'Input Form'!D24","v":" "}]
[]
["Date of Birth:",null,{"$f":"'Input Form'!E26","v":" "},"/",{"$f":"'Input Form'!G26","v":" "},"/",{"$f":"'Input Form'!I26","v":" "},null,"Age:",{"$f":"IF('Input Form'!E7*30.42+'Input Form'!G7>'Input Form'!E26*30.42+'Input Form'!G26,'Input Form'!I7-'Input Form'!I26,'Input Form'!I7-('Input Form'!I26+1))","v":{"$error":"#VALUE!"}}]
[]
["Current Scout Rank:",null,{"$f":"'Input Form'!F34","v":" "},null,"Date earned:",{"$f":"'Input Form'!I34","v":" "},null,null,null,"Position of Responsibility in Troop:",{"$f":"'Input Form'!G36","v":" "}]
[]
["Does this Scout have the Indian Lore MB?",null,null,null,{"$f":"IF('Input Form'!G42=\"x\",\"Yes\",\"No\")","v":"No"},null,null,null,"Will complete at Camp:",{"$f":"IF('Input Form'!I43=\"x\",\"Yes\",\"No\")","v":"No"}]
[]
["Scout Spirit:",null,null,{"$f":"'Input Form'!F51","v":" "}]
[]
["Leadership performance:",null,null,{"$f":"'Input Form'!F55","v":" "}]
[]
["Maturity demonstrated:",null,null,{"$f":"'Input Form'!F59","v":" "}]
[]
[]
[{"$f":"IF('Input Form'!B68=\"x\",\"X\",\"N/A\")","v":"N/A"},"Scout meets ALL of the requirements for Warrior. (Scout must have earned the Indian Lore MB. Scout should be a Life Scout.)"]
[{"$f":"IF('Input Form'!B69=\"x\",\"X\",\"N/A\")","v":"N/A"},"Scout does not meet all requirements for Warrior.  However please consider him as per \"Other applicable remarks.\""]
[]
["Other applicable remarks:",null,null,{"$f":"'Input Form'!F63","v":" "}]
[]
[]
[]
["Name of Unit Leader or Tribal Member:",null,null,null,{"$f":"'Input Form'!F73","v":" "},null,null,null,"Date:",{"$f":"'Input Form'!I73","v":" "}]
[]
[]
["Signature of Unit Leader or Tribal Member:"]
[]
[]
[]
[]
[]
[]
["Do NOT write in this space:"]
[null,"Approved:",null,null,"Disapproved:"]
[]
[null,"Reason:"]
[]
[]
["NBZ Coordinator Signature:"]
[null,null,null,null,null,null,null,null,"Date:"]
[]
[]
[]
[null,null,null,null,null,null,null,null,null,null,null,null,"April 2016 Revision"]

{"sheet":"Firebuilder","index":5,"n_rows":60,"n_cols":13,"rows_kept":60,"cut":false,"hidden":true,"merged":[[27,3,28,12],[37,4,37,6],[54,0,55,1],[33,3,35,12],[13,1,13,5],[13,7,13,8],[15,1,15,3],[17,2,17,6],[23,3,24,12],[25,3,26,12],[40,4,40,6],[11,2,11,5],[4,4,5,12],[6,4,6,12],[9,1,9,2],[9,3,9,6],[9,11,9,12]]}
[]
[null,null,null,null,"FIREBUILDER RECOMMENDATION"]
[null,null,null,null,"This recommendation is Confidential!  No Scout should know that he is being recommended."]
[]
[null,null,null,"NOTE: ","1. A printed copy of this form must be turned into a representative of Nani-Ba-Zhu at the pre-camp check-in or the Sunday camp check-in but NO LATER than Tuesday at 5:00 PM."]
[]
[null,null,null,null,"2. This recommendation will be presented to the Tribal Council for final consideration."]
[]
[]
["Name:",{"$f":"'Input Form'!D10","v":" "},null,{"$f":"'Input Form'!H10","v":" "},null,null,null,null,"Unit No.:",{"$f":"'Input Form'!D11","v":" "},"District:",{"$f":"'Input Form'!H11","v":" "}]
[]
["Tribal name:",null,{"$f":"'Input Form'!H17","v":" "}]
[]
["Address:",{"$f":"'Input Form'!D19","v":" "},null,null,null,null,"City:",{"$f":"'Input Form'!D20","v":" "},null,"State:",{"$f":"'Input Form'!D21","v":" "},"Zip:",{"$f":"'Input Form'!D22","v":" "}]
[]
["Phone No.:",{"$f":"'Input Form'!D23","v":" "},null,null,null,"Home?:",{"$f":"IF('Input Form'!G23=\"x\",\"X\",\"N/A\")","v":"N/A"},null,"Cell?:",{"$f":"IF('Input Form'!I23=\"X\",\"X\",\"N/A\")","v":"N/A"}]
[]
["E-mail address:",null,{"$f":"'Input Form'!D24","v":" "}]
[]
["Date of Birth:",null,{"$f":"'Input Form'!E26","v":" "},"/",{"$f":"'Input Form'!G26","v":" "},"/",{"$f":"'Input Form'!I26","v":" "},null,"Age:",{"$f":"IF('Input Form'!E7*30.42+'Input Form'!G7>'Input Form'!E26*30.42+'Input Form'!G26,'Input Form'!I7-'Input Form'!I26,'Input Form'!I7-('Input Form'!I26+1))","v":{"$error":"#VALUE!"}}]
[]
["Current Scout Rank:",null,{"$f":"'Input Form'!F34","v":" "},null,"Date earned:",{"$f":"'Input Form'!I34","v":" "},null,null,null,"Position of Responsibility in Troop:",{"$f":"'Input Form'!G36","v":" "}]
[]
["Scout Spirit:",null,null,{"$f":"'Input Form'!F51","v":" "}]
[]
["Leadership performance:",null,null,{"$f":"'Input Form'!F55","v":" "}]
[]
["Maturity demonstrated:",null,null,{"$f":"'Input Form'!F59","v":" "}]
[]
[]
[{"$f":"IF('Input Form'!B68=\"x\",\"X\",\"N/A\")","v":"N/A"},"Scout meets ALL of the requirements for Firebuilder. (Scout must be a Life Scout.)"]
[{"$f":"IF('Input Form'!B69=\"x\",\"X\",\"N/A\")","v":"N/A"},"Scout does not meet all requirements for Firebuilder.  However please consider him as per \"Other applicable remarks.\""]
[]
["Other applicable remarks:",null,null,{"$f":"'Input Form'!F63","v":" "}]
[]
[]
[]
["Name of Unit Leader or Tribal Member:",null,null,null,{"$f":"'Input Form'!F73","v":" "},null,null,null,"Date:",{"$f":"'Input Form'!I73","v":" "}]
[]
[]
["Signature of Unit Leader or Tribal Member:"]
[]
[]
[]
[]
[]
[]
[]
["Do NOT write in this space:"]
[null,"Approved:",null,null,"Disapproved:"]
[]
[null,"Reason:"]
[]
[]
["NBZ Coordinator Signature:"]
[null,null,null,null,null,null,null,null,"Date:"]
[]
[]
[]
[null,null,null,null,null,null,null,null,null,null,null,null,"April 2016 Revision"]

{"sheet":"Tom-Tom Beater","index":6,"n_rows":60,"n_cols":13,"rows_kept":60,"cut":false,"hidden":true,"merged":[[27,3,28,12],[37,4,37,6],[54,0,55,1],[33,3,35,12],[13,1,13,5],[13,7,13,8],[15,1,15,3],[17,2,17,6],[23,3,24,12],[25,3,26,12],[40,4,40,6],[11,2,11,5],[4,4,5,12],[6,4,6,12],[9,1,9,2],[9,3,9,6],[9,11,9,12]]}
[]
[null,null,null,null,"TOM-TOM BEATER RECOMMENDATION"]
[null,null,null,null,"This recommendation is Confidential!  No Scout should know that he is being recommended."]
[]
[null,null,null,"NOTE: ","1. A printed copy of this form must be turned into a representative of Nani-Ba-Zhu at the pre-camp check-in or the Sunday camp check-in but NO LATER than Tuesday at 5:00 PM."]
[]
[null,null,null,null,"2. This recommendation will be presented to the Tribal Council for final consideration."]
[]
[]
["Name:",{"$f":"'Input Form'!D10","v":" "},null,{"$f":"'Input Form'!H10","v":" "},null,null,null,null,"Unit No.:",{"$f":"'Input Form'!D11","v":" "},"District:",{"$f":"'Input Form'!H11","v":" "}]
[]
["Tribal name:",null,{"$f":"'Input Form'!H17","v":" "}]
[]
["Address:",{"$f":"'Input Form'!D19","v":" "},null,null,null,null,"City:",{"$f":"'Input Form'!D20","v":" "},null,"State:",{"$f":"'Input Form'!D21","v":" "},"Zip:",{"$f":"'Input Form'!D22","v":" "}]
[]
["Phone No.:",{"$f":"'Input Form'!D23","v":" "},null,null,null,"Home?:",{"$f":"IF('Input Form'!G23=\"x\",\"X\",\"N/A\")","v":"N/A"},null,"Cell?:",{"$f":"IF('Input Form'!I23=\"X\",\"X\",\"N/A\")","v":"N/A"}]
[]
["E-mail address:",null,{"$f":"'Input Form'!D24","v":" "}]
[]
["Date of Birth:",null,{"$f":"'Input Form'!E26","v":" "},"/",{"$f":"'Input Form'!G26","v":" "},"/",{"$f":"'Input Form'!I26","v":" "},null,"Age:",{"$f":"IF('Input Form'!E7*30.42+'Input Form'!G7>'Input Form'!E26*30.42+'Input Form'!G26,'Input Form'!I7-'Input Form'!I26,'Input Form'!I7-('Input Form'!I26+1))","v":{"$error":"#VALUE!"}}]
[]
["Current Scout Rank:",null,{"$f":"'Input Form'!F34","v":" "},null,"Date earned:",{"$f":"'Input Form'!I34","v":" "},null,null,null,"Position of Responsibility in Troop:",{"$f":"'Input Form'!G36","v":" "}]
[]
["Scout Spirit:",null,null,{"$f":"'Input Form'!F51","v":" "}]
[]
["Leadership performance:",null,null,{"$f":"'Input Form'!F55","v":" "}]
[]
["Maturity demonstrated:",null,null,{"$f":"'Input Form'!F59","v":" "}]
[]
[]
[{"$f":"IF('Input Form'!B68=\"x\",\"X\",\"N/A\")","v":"N/A"},"Scout meets ALL of the requirements for Tom-Tom Beater. (Scout should be an Eagle Scout.)"]
[{"$f":"IF('Input Form'!B69=\"x\",\"X\",\"N/A\")","v":"N/A"},"Scout does not meet all requirements for Tom-Tom Beater.  However please consider him as per \"Other applicable remarks.\""]
[]
["Other applicable remarks:",null,null,{"$f":"'Input Form'!F63","v":" "}]
[]
[]
[]
["Name of Unit Leader or Tribal Member:",null,null,null,{"$f":"'Input Form'!F73","v":" "},null,null,null,"Date:",{"$f":"'Input Form'!I73","v":" "}]
[]
[]
["Signature of Unit Leader or Tribal Member:"]
[]
[]
[]
[]
[]
[]
[]
["Do NOT write in this space:"]
[null,"Approved:",null,null,"Disapproved:"]
[]
[null,"Reason:"]
[]
[]
["NBZ Coordinator Signature:"]
[null,null,null,null,null,null,null,null,"Date:"]
[]
[]
[]
[null,null,null,null,null,null,null,null,null,null,null,null,"April 2016 Revision"]

{"sheet":"Runner","index":7,"n_rows":60,"n_cols":13,"rows_kept":60,"cut":false,"hidden":true,"merged":[[27,3,28,12],[33,3,35,12],[37,4,37,6],[54,0,55,1],[13,1,13,5],[13,7,13,8],[15,1,15,3],[17,2,17,6],[23,3,24,12],[25,3,26,12],[40,4,40,6],[11,2,11,5],[4,4,5,12],[6,4,6,12],[9,1,9,2],[9,3,9,6],[9,11,9,12]]}
[]
[null,null,null,null,"RUNNER RECOMMENDATION"]
[null,null,null,null,"This recommendation is Confidential!  No Scout should know that he is being recommended."]
[]
[null,null,null,"NOTE: ","1. A printed copy of this form must be turned into a representative of Nani-Ba-Zhu at the pre-camp check-in or the Sunday camp check-in but NO LATER than Tuesday at 5:00 PM."]
[]
[null,null,null,null,"2. This recommendation will be presented to the Tribal Council for final consideration."]
[]
[]
["Name:",{"$f":"'Input Form'!D10","v":" "},null,{"$f":"'Input Form'!H10","v":" "},null,null,null,null,"Unit No.:",{"$f":"'Input Form'!D11","v":" "},"District:",{"$f":"'Input Form'!H11","v":" "}]
[]
["Tribal name:",null,{"$f":"'Input Form'!H17","v":" "}]
[]
["Address:",{"$f":"'Input Form'!D19","v":" "},null,null,null,null,"City:",{"$f":"'Input Form'!D20","v":" "},null,"State:",{"$f":"'Input Form'!D21","v":" "},"Zip:",{"$f":"'Input Form'!D22","v":" "}]
[]
["Phone No.:",{"$f":"'Input Form'!D23","v":" "},null,null,null,"Home?:",{"$f":"IF('Input Form'!G23=\"x\",\"X\",\"N/A\")","v":"N/A"},null,"Cell?:",{"$f":"IF('Input Form'!I23=\"X\",\"X\",\"N/A\")","v":"N/A"}]
[]
["E-mail address:",null,{"$f":"'Input Form'!D24","v":" "}]
[]
["Date of Birth:",null,{"$f":"'Input Form'!E26","v":" "},"/",{"$f":"'Input Form'!G26","v":" "},"/",{"$f":"'Input Form'!I26","v":" "},null,"Age:",{"$f":"IF('Input Form'!E7*30.42+'Input Form'!G7>'Input Form'!E26*30.42+'Input Form'!G26,'Input Form'!I7-'Input Form'!I26,'Input Form'!I7-('Input Form'!I26+1))","v":{"$error":"#VALUE!"}}]
[]
["Current Scout Rank:",null,{"$f":"'Input Form'!F34","v":" "},null,"Date earned:",{"$f":"'Input Form'!I34","v":" "},null,null,null,"Position of Responsibility in Troop:",{"$f":"'Input Form'!G36","v":" "}]
[]
["Scout Spirit:",null,null,{"$f":"'Input Form'!F51","v":" "}]
[]
["Leadership performance:",null,null,{"$f":"'Input Form'!F55","v":" "}]
[]
["Maturity demonstrated:",null,null,{"$f":"'Input Form'!F59","v":" "}]
[]
[]
[{"$f":"IF('Input Form'!B68=\"x\",\"X\",\"N/A\")","v":"N/A"},"Scout meets ALL of the requirements for Runner. (Scout must be an Eagle Scout.)"]
[{"$f":"IF('Input Form'!B69=\"x\",\"X\",\"N/A\")","v":"N/A"},"Scout does not meet all requirements for Runner.  However please consider him as per \"Other applicable remarks.\""]
[]
["Other applicable remarks:",null,null,{"$f":"'Input Form'!F63","v":" "}]
[]
[]
[]
["Name of Unit Leader or Tribal Member:",null,null,null,{"$f":"'Input Form'!F73","v":" "},null,null,null,"Date:",{"$f":"'Input Form'!I73","v":" "}]
[]
[]
["Signature of Unit Leader or Tribal Member:"]
[]
[]
[]
[]
[]
[]
[]
["Do NOT write in this space:"]
[null,"Approved:",null,null,"Disapproved:"]
[]
[null,"Reason:"]
[]
[]
["NBZ Coordinator Signature:"]
[null,null,null,null,null,null,null,null,"Date:"]
[]
[]
[]
[null,null,null,null,null,null,null,null,null,null,null,null,"April 2016 Revision"]

{"sheet":"Keeper","index":8,"n_rows":55,"n_cols":13,"rows_kept":55,"cut":false,"hidden":true,"merged":[[23,3,25,12],[32,4,32,6],[49,0,50,1],[21,3,21,7],[28,1,29,12],[35,4,35,6],[13,1,13,5],[13,7,13,8],[15,1,15,3],[17,2,17,6],[4,4,5,12],[6,4,6,12],[9,1,9,2],[9,3,9,6],[11,2,11,5],[9,11,9,12]]}
[]
[null,null,null,null,"KEEPER OF THE SACRED BUNDLE RECOMMENDATION"]
[null,null,null,null,"This recommendation is Confidential!  No Scout should know that he is being recommended."]
[]
[null,null,null,"NOTE: ","1. A printed copy of this form must be turned into a representative of Nani-Ba-Zhu at the pre-camp check-in or the Sunday camp check-in but NO LATER than Tuesday at 5:00 PM."]
[]
[null,null,null,null,"2. This recommendation will be presented to the Tribal Council for final consideration."]
[]
[]
["Name:",{"$f":"'Input Form'!D10","v":" "},null,{"$f":"'Input Form'!H10","v":" "},null,null,null,null,"Unit No.:",{"$f":"'Input Form'!D11","v":" "},"District:",{"$f":"'Input Form'!H11","v":" "}]
[]
["Tribal name:",null,{"$f":"'Input Form'!H17","v":" "}]
[]
["Address:",{"$f":"'Input Form'!D19","v":" "},null,null,null,null,"City:",{"$f":"'Input Form'!D20","v":" "},null,"State:",{"$f":"'Input Form'!D21","v":" "},"Zip:",{"$f":"'Input Form'!D22","v":" "}]
[]
["Phone No.:",{"$f":"'Input Form'!D23","v":" "},null,null,null,"Home?:",{"$f":"IF('Input Form'!G23=\"x\",\"X\",\"N/A\")","v":"N/A"},null,"Cell?:",{"$f":"IF('Input Form'!I23=\"X\",\"X\",\"N/A\")","v":"N/A"}]
[]
["E-mail address:",null,{"$f":"'Input Form'!D24","v":" "}]
[]
["Date of Birth:",null,{"$f":"'Input Form'!E26","v":" "},"/",{"$f":"'Input Form'!G26","v":" "},"/",{"$f":"'Input Form'!I26","v":" "},null,"Age:",{"$f":"IF('Input Form'!E7*30.42+'Input Form'!G7>'Input Form'!E26*30.42+'Input Form'!G26,'Input Form'!I7-'Input Form'!I26,'Input Form'!I7-('Input Form'!I26+1))","v":{"$error":"#VALUE!"}}]
[]
["Registered adult position:",null,null,{"$f":"'Input Form'!H37","v":" "}]
[]
["Other applicable remarks:",null,null,{"$f":"'Input Form'!F63","v":" "}]
[]
[]
[]
[{"$f":"IF('Input Form'!B68=\"x\",\"X\",\"N/A\")","v":"N/A"},"Scout meets ALL of the requirements for Keeper of the Sacred Bundle. (Scout must be an Eagle Scout.)"]
[{"$f":"IF('Input Form'!B69=\"x\",\"X\",\"N/A\")","v":"N/A"},"Scout does not meet all requirements for Keeper of the Sacred Bundle.  However please consider him as per \"Other applicable remarks.\""]
[]
[]
[]
["Name of Unit Leader or Tribal Member:",null,null,null,{"$f":"'Input Form'!F73","v":" "},null,null,null,"Date:",{"$f":"'Input Form'!I73","v":" "}]
[]
[]
["Signature of Unit Leader or Tribal Member:"]
[]
[]
[]
[]
[]
[]
[]
["Do NOT write in this space:"]
[null,"Approved:",null,null,"Disapproved:"]
[]
[null,"Reason:"]
[]
[]
["NBZ Coordinator Signature:"]
[null,null,null,null,null,null,null,null,"Date:"]
[]
[]
[]
[null,null,null,null,null,null,null,null,null,null,null,null,"April 2016 Revision"]

{"sheet":"Shaman","index":9,"n_rows":55,"n_cols":13,"rows_kept":55,"cut":false,"hidden":true,"merged":[[28,1,29,12],[32,4,32,6],[49,0,50,1],[13,1,13,5],[13,7,13,8],[15,1,15,3],[17,2,17,6],[21,3,21,7],[23,3,25,12],[35,4,35,6],[11,2,11,5],[4,4,5,12],[6,4,6,12],[9,1,9,2],[9,3,9,6],[9,11,9,12]]}
[]
[null,null,null,null,"SHAMAN RECOMMENDATION"]
[null,null,null,null,"This recommendation is Confidential!  No Scout should know that he is being recommended."]
[]
[null,null,null,"NOTE: ","1. A printed copy of this form must be turned into a representative of Nani-Ba-Zhu at the pre-camp check-in or the Sunday camp check-in but NO LATER than Tuesday at 5:00 PM."]
[]
[null,null,null,null,"2. This recommendation will be presented to the Tribal Council for final consideration."]
[]
[]
["Name:",{"$f":"'Input Form'!D10","v":" "},null,{"$f":"'Input Form'!H10","v":" "},null,null,null,null,"Unit No.:",{"$f":"'Input Form'!D11","v":" "},"District:",{"$f":"'Input Form'!H11","v":" "}]
[]
["Tribal name:",null,{"$f":"'Input Form'!H17","v":" "}]
[]
["Address:",{"$f":"'Input Form'!D19","v":" "},null,null,null,null,"City:",{"$f":"'Input Form'!D20","v":" "},null,"State:",{"$f":"'Input Form'!D21","v":" "},"Zip:",{"$f":"'Input Form'!D22","v":" "}]
[]
["Phone No.:",{"$f":"'Input Form'!D23","v":" "},null,null,null,"Home?:",{"$f":"IF('Input Form'!G23=\"x\",\"X\",\"N/A\")","v":"N/A"},null,"Cell?:",{"$f":"IF('Input Form'!I23=\"X\",\"X\",\"N/A\")","v":"N/A"}]
[]
["E-mail address:",null,{"$f":"'Input Form'!D24","v":" "}]
[]
["Date of Birth:",null,{"$f":"'Input Form'!E26","v":" "},"/",{"$f":"'Input Form'!G26","v":" "},"/",{"$f":"'Input Form'!I26","v":" "},null,"Age:",{"$f":"IF('Input Form'!E7*30.42+'Input Form'!G7>'Input Form'!E26*30.42+'Input Form'!G26,'Input Form'!I7-'Input Form'!I26,'Input Form'!I7-('Input Form'!I26+1))","v":{"$error":"#VALUE!"}}]
[]
["Registered adult position:",null,null,{"$f":"'Input Form'!H37","v":" "}]
[]
["Other applicable remarks:",null,null,{"$f":"'Input Form'!F63","v":" "}]
[]
[]
[]
[{"$f":"IF('Input Form'!B68=\"x\",\"X\",\"N/A\")","v":"N/A"},"Scout meets ALL of the requirements for Shaman. (Scout must be an Eagle Scout.)"]
[{"$f":"IF('Input Form'!B69=\"x\",\"X\",\"N/A\")","v":"N/A"},"Scout does not meet all requirements for Shaman.  However please consider him as per \"Other applicable remarks.\""]
[]
[]
[]
["Name of Unit Leader or Tribal Member:",null,null,null,{"$f":"'Input Form'!F73","v":" "},null,null,null,"Date:",{"$f":"'Input Form'!I73","v":" "}]
[]
[]
["Signature of Unit Leader or Tribal Member:"]
[]
[]
[]
[]
[]
[]
[]
["Do NOT write in this space:"]
[null,"Approved:",null,null,"Disapproved:"]
[]
[null,"Reason:"]
[]
[]
["NBZ Coordinator Signature:"]
[null,null,null,null,null,null,null,null,"Date:"]
[]
[]
[]
[null,null,null,null,null,null,null,null,null,null,null,null,"April 2016 Revision"]

{"sheet":"List","index":10,"n_rows":11,"n_cols":3,"rows_kept":11,"cut":false,"hidden":true,"merged":[]}
[]
[]
[null,null,"Advancement"]
[null,null,"Black Diamond"]
[null,null,"Brave"]
[null,null,"Warrior"]
[null,null,"Firebuilder"]
[null,null,"Tom-Tom Beater"]
[null,null,"Runner"]
[null,null,"Keeper of the Sacred Bundle"]
[null,null,"Shaman"]